Cogmind - Beta 13 @@@ ROGUE MODE // 2024.04.12 @ 02:13:31 Player: xeen Result: Destroyed by H-61 Shepherd with Heavy Assault Cannon Performance ------------- Evolutions (2) 1000 Regions Visited (4) 800 Robots Destroyed (17) 85 Value Destroyed (532) 532 Prototype IDs (0) 0 Alien Tech Used (0) 0 Bonus (0) 0 TOTAL SCORE: 2417 Bonus ------- None Cogmind --------- Core Integrity 0/550 Matter 255/300 Energy 99/100 System Corruption 9% Temperature Cool (0) Movement Core (150) Ox2 Location -8/Materials Parts ------- > --- POWER (1) -------- (None) > --- PROPULSION (4) --- (None) > --- UTILITY (3) ------ Small Storage Unit Improved Propulsion Shielding > --- WEAPON (3) ------- (None) > --- INVENTORY (8) ---- Light Ion Engine Advanced Weight Redist. System Sensor Array System Shield Peak State ------------ > --- POWER ------------ Light Nuclear Core > --- PROPULSION ------- Aluminum Leg Aluminum Leg > --- UTILITY ---------- Small Storage Unit Advanced Weight Redist. System Improved Propulsion Shielding > --- WEAPON ----------- EM Pulse Gun Pulse Rifle Minigun > --- INVENTORY -------- Light Ion Engine Light Deuterium Engine Advanced Weight Redist. System Sensor Array Medium Laser Rocket Launcher Great Maul [Rating: 20] Favorites ----------- Power Light Ion Engine Engine Light Ion Engine Power Core Light Nuclear Core Propulsion Aluminum Leg Leg Aluminum Leg Utility Small Storage Unit Device Sensor Array Storage Small Storage Unit Protection Improved Propulsion Shielding Weapon Medium Laser Energy Gun Medium Laser Ballistic Gun Assault Rifle Launcher Rocket Launcher Impact Weapon Great Maul Build | -11 -10 -10 -9 -8 ------- Run | Yrd Mat Min Mat Mat Slots Evolved 4 | . . . 2 2 Power . | . . . . . Propulsion 2 | . . . 2 . Utility 1 | . . . . 1 Weapon 1 | . . . . 1 Parts Attached 24 | 5 . . 8 11 Power 3 | 1 . . 1 1 Engine 2 | 1 . . . 1 Core 1 | . . . 1 . Reactor . | . . . . . Propulsion 4 | 2 . . 2 . Treads . | . . . . . Leg 4 | 2 . . 2 . Wheel . | . . . . . Hover . | . . . . . Flight . | . . . . . Utility 5 | . . . 4 1 Device 3 | . . . 3 . Storage 1 | . . . 1 . Processor . | . . . . . Hackware . | . . . . . Protection 1 | . . . . 1 Artifact . | . . . . . Weapon 12 | 2 . . 1 9 Energy Gun 4 | 1 . . 1 2 Energy Cannon . | . . . . . Ballistic Gun 4 | 1 . . . 3 Ballistic Cannon . | . . . . . Launcher 2 | . . . . 2 Special Weapon 1 | . . . . 1 Impact Weapon 1 | . . . . 1 Slashing Weapon . | . . . . . Piercing Weapon . | . . . . . Special Melee Weapon . | . . . . . Unidentified Prototypes . | . . . . . Parts Lost 17 | . . . 3 14 Power 2 | . . . . 2 Propulsion 4 | . . . 2 2 Utility 1 | . . . . 1 Weapon 10 | . . . 1 9 Highest Loss Streak 14 | . . . 2 14 To Critical Strikes . | . . . . . Average Slot Usage (%) 72 | . 71 71 82 60 Engine 6 | . 14 14 3 1 Core 4 | . . . 7 5 Leg 23 | . 28 28 30 11 Device 5 | . . . 9 6 Storage 6 | . . . 9 9 Protection 2 | . . . . 8 Energy Gun 13 | . 14 14 15 10 Ballistic Gun 8 | . 14 14 6 5 Naked Turns . | . . . . . Heaviest Build 20 | 7 7 7 15 20 Greatest Support 40 | 20 20 20 40 29 Greatest Overweight (x) 4 | . . . . 4 Average Overweight (x) . | . . . . . Largest Inventory Capacity 8 | 5 5 5 8 8 Average Capacity 6 | 5 5 5 7 8 Most Carried 8 | 3 3 5 7 8 Average Carried 4 | 1 3 3 4 6 Final Capacity 8 | 5 5 5 8 8 Final Carried 7 | 3 3 5 7 4 Class Distribution -------------------- 87% | Mutant 12% | Tank Dominant Class ---------------- Mutant | -10/Materials Mutant | -10/Mines Mutant | -9/Materials Tank | -8/Materials Resources | -11 -10 -10 -9 -8 ----------- Run | Yrd Mat Min Mat Mat Matter Collected 477 | 194 . 51 104 128 Remotely . | . . . . . Salvage Created 555 | . . 51 269 235 Parts 31 | . . 6 17 8 Haulers Intercepted . | . . . . . Recyclers Shooed 1 | . . . . 1 Parts Field Recycled . | . . . . . Retrieved Matter . | . . . . . Parts Self-Destructed . | . . . . . Prevented . | . . . . . Kills | -11 -10 -10 -9 -8 ------- Run | Yrd Mat Min Mat Mat Combat Hostiles Destroyed 17 | . . 3 8 6 Guns 16 | . . 3 8 5 AOE 1 | . . . . 1 Classes Destroyed 4 | . . 1 1 2 Swarmer 6 | . . 3 3 . Grunt 9 | . . . 5 4 Brawler 1 | . . . . 1 Hunter 1 | . . . . 1 Best Kill Streak 4 | . . 3 4 4 Combat Bots Only 4 | . . 3 4 4 Max Kills in Single Turn 2 | . . 1 1 2 Gunslinging . | . . . . . Exploded 1 | . . . . 1 Melee . | . . . . . Uniques/NPCs Destroyed . | . . . . . Combat | -11 -10 -10 -9 -8 -------- Run | Yrd Mat Min Mat Mat Hostile Shots Fired 252 | . 2 8 79 163 Missed 82 | . 2 3 20 57 Damage Taken 2248 | . . 50 556 1642 Core 679 | . . 7 103 569 Absorbed by Shields . | . . . . . Redirected to Shielding 86 | . . . . 86 Core Remaining (%) 90 | 100 . 97 74 . Volleys Fired 53 | . . 3 26 24 Largest 3 | . . 2 2 3 Hottest 128 | . . 70 90 128 Shots Fired 94 | . . 6 46 42 Gun 90 | . . 6 46 38 Cannon . | . . . . . Launcher 4 | . . . . 4 Special . | . . . . . Kinetic 32 | . . 3 11 18 Thermal 39 | . . 3 26 10 Explosive 4 | . . . . 4 Electromagnetic 19 | . . . 9 10 Robot Hit Streak 7 | . . 4 7 6 Robot Miss Streak 12 | . . 1 12 3 Penetration Max . | . . . . . Secondary Targets 4 | . . 1 3 . Max Gunslinging Chain 1 | . . 1 1 . Shots Hit Robots 55 | . . 4 25 26 Core Hits 36 | . . 3 13 20 Critical Kills . | . . . . . Critical Parts Destroyed 1 | . . . . 1 Critical Strikes 2 | . . . . 2 Corrupt 1 | . . . . 1 Smash 1 | . . . . 1 Melee Attacks 4 | . . . . 4 Impact 4 | . . . . 4 Slashing . | . . . . . Piercing . | . . . . . Sneak Attacks . | . . . . . Combat Hostiles . | . . . . . Follow-up Attacks . | . . . . . Damage Inflicted 1353 | . . 52 359 942 Guns 745 | . . 52 359 334 Cannons . | . . . . . Explosions 442 | . . . . 442 Melee 166 | . . . . 166 Ramming . | . . . . . Kinetic 315 | . . 27 82 206 Thermal 306 | . . 25 202 79 Explosive 442 | . . . . 442 Electromagnetic 124 | . . . 75 49 Impact 166 | . . . . 166 Slashing . | . . . . . Piercing . | . . . . . Highest Corruption 9 | . . . . 9 Average Corruption 8 | . . . . 8 Corruption Purged . | . . . . . Corruption Blocked . | . . . . . Effects 5 | . . . . 5 Message Errors 2 | . . . . 2 Data Loss (minor) 1 | . . . . 1 Weapon Failures 2 | . . . . 2 Overload Shots . | . . . . . Overflow Damage 60 | . . . . 60 Projectiles . | . . . . . Explosions 9 | . . . . 9 Melee 51 | . . . . 51 Knockbacks 2 | . . . . 2 Impact 2 | . . . . 2 Kinetic . | . . . . . Secondary . | . . . . . Self-Inflicted Damage . | . . . . . Shots . | . . . . . Rammed . | . . . . . Targets Rammed . | . . . . . Kicked . | . . . . . Crushed . | . . . . . Highest Temperature 294 | . . 27 186 294 Average Temperature 83 | . . 14 62 124 Received Heat Transfer 627 | . . 9 159 459 Effects 1 | . . . . 1 Interference 1 | . . . . 1 Siege Activations . | . . . . . Robots Corrupted . | . . . . . Combat Hostiles . | . . . . . Parts Fried . | . . . . . Impact Corruptions 1 | . . . . 1 Robots Melted . | . . . . . Combat Hostiles . | . . . . . Parts Melted . | . . . . . Heat Transferred 851 | . . 74 592 185 Parts Sabotaged . | . . . . . Parts Stolen . | . . . . . Parts Stripped . | . . . . . Power Chain Reactions . | . . . . . Alert | -11 -10 -10 -9 -8 ------- Run | Yrd Mat Min Mat Mat Peak Influence 232 | . . 70 232 195 Initial 97 | . . . 27 97 Average 81 | . . 5 123 131 Maximum Alert Level 1 | . . . 1 . Low Security (%) 88 | 100 100 100 68 100 Level 1 11 | . . . 31 . Level 2 . | . . . . . Level 3 . | . . . . . Level 4 . | . . . . . Level 5 . | . . . . . High Security . | . . . . . Max Security . | . . . . . Squads Dispatched 3 | . 1 . 1 1 Investigation . | . . . . . Extermination . | . . . . . Reinforcement 3 | . 1 . 1 1 Assault . | . . . . . Garrison . | . . . . . Intercept . | . . . . . Searches Triggered . | . . . . . Construction Impeded . | . . . . . Haulers Reinforced . | . . . . . Active Scanning Responses . | . . . . . Cargo Convoy Interrupts . | . . . . . Stealth | -11 -10 -10 -9 -8 --------- Run | Yrd Mat Min Mat Mat Distress Signals 3 | . 2 . 1 . Communications Jammed . | . . . . . Distress Signals . | . . . . . Times Spotted 37 | . 2 5 13 17 Peak Tracking Total 7 | . 2 2 7 6 Tactical Retreats 2 | . . . . 2 Traps | -11 -10 -10 -9 -8 ------- Run | Yrd Mat Min Mat Mat Traps Triggered . | . . . . . Indirectly . | . . . . . Trap Hack Attempts . | . . . . . Triggered . | . . . . . Disarmed . | . . . . . Reprogrammed . | . . . . . Reused . | . . . . . Traps Extracted . | . . . . . Installed . | . . . . . Triggered . | . . . . . Machines | -11 -10 -10 -9 -8 ---------- Run | Yrd Mat Min Mat Mat Machines Disabled 1 | . . . 1 . Max in Single Turn 1 | . . . 1 . Machines Repaired . | . . . . . Machines Dismantled . | . . . . . Machines Sabotaged . | . . . . . Overloaded Fab Kills . | . . . . . Hacking | -11 -10 -10 -9 -8 --------- Run | Yrd Mat Min Mat Mat Machines Accessed . | . . . . . Terminals . | . . . . . Fabricators . | . . . . . Repair Stations . | . . . . . Recycling Units . | . . . . . Scanalyzers . | . . . . . Garrison Access . | . . . . . Total Hacks . | . . . . . Successful . | . . . . . Failed . | . . . . . Catastrophic . | . . . . . Database Lockouts . | . . . . . Manual . | . . . . . Terminals . | . . . . . Fabricators . | . . . . . Repair Stations . | . . . . . Recycling Units . | . . . . . Scanalyzers . | . . . . . Garrison Access . | . . . . . Terminal Hacks . | . . . . . Fabricator Hacks . | . . . . . Repair Station Hacks . | . . . . . Recycling Unit Hacks . | . . . . . Scanalyzer . | . . . . . Garrison Access Hacks . | . . . . . Unauthorized Hacks . | . . . . . Terminals . | . . . . . Fabricators . | . . . . . Repair Stations . | . . . . . Recycling Units . | . . . . . Scanalyzers . | . . . . . Garrison Access . | . . . . . Data Cores Recovered . | . . . . . Used . | . . . . . Hacking Detections . | . . . . . Full Trace Events . | . . . . . Feedback Events . | . . . . . Feedback Blocked . | . . . . . Robot Schematics Acquired . | . . . . . Robots Built . | . . . . . Authchips . | . . . . . Time . | . . . . . Total Robot Build Rating . | . . . . . Part Schematics Acquired . | . . . . . Parts Built . | . . . . . Authchips . | . . . . . Time . | . . . . . Total Part Build Rating . | . . . . . Parts Repaired . | . . . . . Time . | . . . . . Parts Recycled . | . . . . . Recycled Matter . | . . . . . Retrieved Matter . | . . . . . Retrieved Components . | . . . . . Parts Scanalyzed . | . . . . . Part Schematics Acquired . | . . . . . Parts Damaged . | . . . . . Bothacking | -11 -10 -10 -9 -8 ------------ Run | Yrd Mat Min Mat Mat Used RIF Installer . | . . . . . Robots Hacked . | . . . . . Non-combat . | . . . . . Combat . | . . . . . Robot Hacks Applied . | . . . . . Relay Couplers Released . | . . . . . Fabnet Peak Effective % . | . . . . . Robots Rewired . | . . . . . Allies Hacked . | . . . . . Hacks Repelled . | . . . . . Allies | -11 -10 -10 -9 -8 -------- Run | Yrd Mat Min Mat Mat Total Allies . | . . . . . Largest Group . | . . . . . Highest-Rated Group . | . . . . . Highest-Rated Ally . | . . . . . Total Orders . | . . . . . Ally Attacks . | . . . . . Total Damage . | . . . . . Kills . | . . . . . Allies Corrupted . | . . . . . Allies Melted . | . . . . . Intel | -11 -10 -10 -9 -8 ------- Run | Yrd Mat Min Mat Mat Robot Analysis Total . | . . . . . Derelict Logs Recovered . | . . . . . Drone Launches . | . . . . . Drone Recoveries . | . . . . . Exploration | -11 -10 -10 -9 -8 ------------- Run | Yrd Mat Min Mat Mat Turns Passed 843 | 66 80 165 301 231 Spaces Moved 531 | 51 67 129 175 109 Core 29 | 11 . . . 18 Treads . | . . . . . Legs 502 | 40 67 129 175 91 Wheels . | . . . . . Hover . | . . . . . Flight . | . . . . . Fastest Speed 50 | 50 120 120 120 120 Average Speed 120 | 104 120 120 120 131 Slowest Speed 250 | 120 120 120 120 250 Overloaded Moves . | . . . . . Propulsion Burnouts . | . . . . . Robots Hopped . | . . . . . Cave-ins Triggered . | . . . . . Exploration Rate (%) 12 | 3 18 20 13 9 Regions Visited 4 Branch Regions 1 Pre-discovered Areas . | . . . . . Known Exits Taken . | . . . . . Unknown Exits Taken 4 | 1 1 1 1 . Scrap Searched . | . . . . . Spaces Dug . | . . . . . Terrain Destroyed 30 | . . . . 30 Melee . | . . . . . Projectile . | . . . . . AOE 30 | . . . . 30 Terrain Rammed . | . . . . . Walls Destroyed . | . . . . . Machines Disabled . | . . . . . Actions | -11 -10 -10 -9 -8 --------- Run | Yrd Mat Min Mat Mat Total 638 | 63 66 133 219 157 Wait . | . . . . . Move 527 | 50 66 128 174 109 Hop . | . . . . . Pick Up 26 | 8 . 2 9 7 Fast Attach . | . . . . . Attach 20 | 5 . . 5 10 Detach 1 | . . . . 1 Swap 4 | . . . 3 1 Drop 3 | . . . 2 1 Fire 53 | . . 3 26 24 Melee 4 | . . . . 4 Ram . | . . . . . Kick . | . . . . . Crush . | . . . . . Escape Stasis . | . . . . . Rewire . | . . . . . Trap . | . . . . . Miscellaneous . | . . . . . Route ------- -11/Scrapyard -10/Materials -10/Mines -9/Materials -8/Materials History --------- Turn | Location | Event 13 | -11/Scrapyard | Discovered new exit (range 15) 67 | -11/Scrapyard | Entered Materials 107 | -10/Materials | Discovered new exit (range 15) 147 | -10/Materials | Entered Mines 154 | -10/Mines | Received a Rocket Launcher from a helpful Derelict 288 | -10/Mines | Discovered new exit (range 5) 312 | -10/Mines | Entered Materials 312 | -9/Materials | Evolved 2 slots: Propulsion x2 315 | -9/Materials | Build established: Mutant 584 | -9/Materials | Discovered new exit (range 5) 613 | -9/Materials | Entered another Materials area 613 | -8/Materials | Evolved 2 slots: Utility x1, Weapon x1 825 | -8/Materials | Core integrity fell below 50% 841 | -8/Materials | Core integrity fell below 20% 844 | -8/Materials | Destroyed by H-61 Shepherd with Heavy Assault Cannon Last Messages --------------- U-05 Engineer builds a Wall. U-05 Engineer lays Concrete. Rocket Launcher destroyed. U-05 Engineer lays Concrete. Acquired Welding Torch. U-05 Engineer lays Concrete. U-05 Engineer builds a Wall. Welding Torch destroyed. U-05 Engineer lays Concrete. ARG7TMO%WZNSML=IJ U U-05 Engineer lays Concrete. X-57 Shotgunner destroyed. U-05 Engineer lays Concrete. U-05 Engineer builds a Wall. Acquired 12 matter. U-05 Engineer lays Concrete. Acquired 31 matter. U-05 Engineer builds a Wall. U-05 Engineer lays Concrete. Penetrated by Slug. Map ----- +----------------------------------------------------+ | ?????????????????????????????????????????????????? | | ?????????????????????????????????????????????????? | | ?????????????????????????????????????????????????? | | ?????????????????????????????????????????????????? | | ?????????????????????????????????????????????????? | | ?????????????????????????????????????????????????? | | ?????????????????????????????????????????????????? | | ?????????????????????????????????????????????????? | | ?????????????????? ????????????????????????????? | | ????????????????? ????????????????????????????? | | ????????????????? ????????????????????????????? | | ?????????????????#^ ????????????????????????????? | | ?????????????????# #???????????????????????????? | | ?????????????????# #???????????????????????????? | | ?????????????????# #???????????????????????????? | | ?????????????????# #???????????????????????????? | | ?????????????????# #???????????????????????????? | | ?????????????????# #???????????????????????????? | | ?????????????????# +???????????????????????????? | | ?????????????????# %#???????????????????????????? | | ?????????????????# #???????????????????????????? | | ????????????????## ##??????????????????????????? | | ????????????????# !##########+###] ?????????? | | ????????????????# % w a% ????????? | | ????????????????+ % H ????????? | | ????????????????# @ a ????????? | | ????????????????# r ##########?????????????? | | ????????????????##g # #####??????????????? | | ?????????????????# #??????????????? | | ?##########+#????# x % #??????????????? | | ?# # #????# r[% ! #??????????????? | | ?# """ # #????# # * *! #??????????????? | | ?# """ # #????# # " *=! #??????????????? | | ?# """ # ###### #### # ######??????????????? | | ?# # #??#########????????????????? | | ?# """ + #???????????????????????????? | | ?# """ # ????????????????????? | | ?# """ # ###+##########?????????????????????? | | ?# # #??????????????????????????????????? | | ?########## #??????????????????????????????????? | | ??????????# #??????????????????????????????????? | | ??????????#####??????????????????????????????????? | | ?????????????????????????????????????????????????? | | ?????????????????????????????????????????????????? | | ?????????????????????????????????????????????????? | | ?????????????????????????????????????????????????? | | ?????????????????????????????????????????????????? | | ?????????????????????????????????????????????????? | | ?????????????????????????????????????????????????? | | ?????????????????????????????????????????????????? | +----------------------------------------------------+ Best States ------------- Heat Dissipation 31 Energy Generation 14 Energy Capacity 160 Matter Stores 300 Matter Capacity 300 Sight Range 16 Robot Scan Range 14 Terrain Scan Density 10 Additional Mass Support 9 Propulsion Shielding 66 Evasion (%) 55 Item Schematics ----------------- None Robot Schematics ------------------ None Fabricated ------------ Nothing Alien Tech Used ----------------- None Achievements -------------- None Challenges ------------ None Game ------ Seed ThiefPortableStorm Manual? 0 Play Time 00:17:39 Cumulative 1.3 hours Start 2024.04.12 @ 01:58:14 End 2024.04.12 @ 02:13:31 Sessions 1 Manual Loads 0 Difficulty Rogue Special Mode None Game No. 5 Rogue 5 Adventurer 0 Explorer 0 Win Type - Total 0 Types 0/0/0/0/0/0/0/0/0 Lore% 0 Gallery% 4 Achievement% 2 Wizard Run 0 Options --------- Layout 1 ASCII 0 Keyboard 0 Movement Arrows Keybinds 0 Fullscreen 1 Font 24/Smallcaps Map View 50x35 Zoom Use 0% Tactical HUD 0 Map Filters NONE Filters NONE Steam 1 RUN: 3ec04823-9cbd-4201-9a29-0e13e1f648be